fUSD/lending_fUSD_20260613
["ID","MTS","AMOUNT","RATE_DAILY","PERIOD"]
[424927880,1781283040000,-164.09,0.00010221,2]
[424927874,1781283040000,-5556.74,9.879e-05,2]
[424927878,1781283040000,-558.31977961,0.0001,2]
[424927859,1781283040000,-1226.51514678,9.253e-05,2]
[424927858,1781283040000,-163.86,9.247e-05,2]
[424927842,1781283040000,-1273389.40150661,8.849e-05,2]
[424927844,1781283040000,-170.0,8.895e-05,2]
[424927845,1781283040000,-1837.97218436,8.895e-05,2]
[424927849,1781283040000,-168.376,8.949e-05,2]
[424927848,1781283040000,-1584.758,8.949e-05,2]
[424927851,1781283040000,-153.39382619,9.041e-05,2]
[424927847,1781283040000,-171.66,8.922e-05,2]
[424927846,1781283040000,-399.54359735,8.895e-05,2]
[424927850,1781283040000,-565.35,8.964e-05,2]
[424927843,1781283040000,-2500000.0,8.849e-05,2]
[424927852,1781283040000,-300.0,9.041e-05,2]
[424927853,1781283040000,-203.9617607,9.041e-05,2]
[424927854,1781283040000,-500.0,9.041e-05,2]
[424927861,1781283040000,-2545.89444477,9.253e-05,2]
[424927862,1781283040000,-3286.37672417,9.262e-05,2]
[424927857,1781283040000,-164.09,9.085e-05,2]
[424927884,1781283040000,-1356.29,0.00010375,2]
[424927860,1781283040000,-1333.64162153,9.253e-05,2]
[424927856,1781283040000,-160.76,9.056e-05,2]
[424927855,1781283040000,-33280.8127,9.049e-05,2]
[424927887,1781283040000,-914.7,0.00010529,2]
[424927864,1781283040000,-1356.29,9.337e-05,2]
[424927886,1781283040000,-165.57,0.00010464,2]
[424927917,1781283040000,-14446.40267091,0.00011099,2]
[424927914,1781283040000,-1459.0,0.00011033,5]
[424927912,1781283040000,-150.0,0.00010959,2]
[424927913,1781283040000,-914.7,0.0001103,2]
[424927911,1781283040000,-150.0,0.00010959,2]
[424927915,1781283040000,-1415.0,0.00011033,5]
[424927919,1781283040000,-14446.40267086,0.00011099,2]
[424927916,1781283040000,-166.66,0.00011068,2]
[424927918,1781283040000,-14446.40267086,0.00011099,2]
[424927921,1781283040000,-1016.21030269,0.00011099,2]
[424927920,1781283040000,-14446.40267086,0.00011099,2]
[424927925,1781283040000,-166.66,0.00011178,2]
[424927927,1781283040000,-163.0,0.00011187,2]
[424927922,1781283040000,-1016.21030265,0.00011099,2]
[424927924,1781283040000,-1016.21030265,0.00011099,2]
[424927926,1781283040000,-163.0,0.00011187,2]
[424927928,1781283040000,-152.0,0.00011187,2]
[424927929,1781283040000,-151.0,0.00011187,2]
[424927885,1781283040000,-433.0,0.00010416,2]
[424927909,1781283040000,-500.0,0.00010958,2]
[424927910,1781283040000,-166.66,0.00010959,2]
[424927923,1781283040000,-1016.21030265,0.00011099,2]
[424927901,1781283040000,-500.0,0.00010958,2]
[424927890,1781283040000,-1533.14393347,0.00010818,2]
[424927903,1781283040000,-500.0,0.00010958,2]
[424927893,1781283040000,-500.0,0.00010958,2]
[424927888,1781283040000,-500.0,0.00010548,2]
[424927895,1781283040000,-500.0,0.00010958,2]
[424927894,1781283040000,-500.0,0.00010958,2]
[424927892,1781283040000,-565.35,0.00010956,2]
[424927891,1781283040000,-3182.36805596,0.00010818,2]
[424927908,1781283040000,-500.0,0.00010958,2]
[424927889,1781283040000,-914.7,0.00010779,2]
[424927897,1781283040000,-500.0,0.00010958,2]
[424927907,1781283040000,-500.0,0.00010958,2]
[424927902,1781283040000,-500.0,0.00010958,2]
[424927906,1781283040000,-500.0,0.00010958,2]
[424927898,1781283040000,-500.0,0.00010958,2]
[424927900,1781283040000,-500.0,0.00010958,2]
[424927904,1781283040000,-500.0,0.00010958,2]
[424927896,1781283040000,-500.0,0.00010958,2]
[424927899,1781283040000,-500.0,0.00010958,2]
[424927905,1781283040000,-500.0,0.00010958,2]
[424927968,1781283041000,-500.0,0.00013425,2]
[424927969,1781283041000,-551.99405593,0.00013425,2]
[424927966,1781283041000,-200.0,0.00013425,2]
[424927967,1781283041000,-150.0,0.00013425,2]
[424927960,1781283041000,-1016.21030265,0.00012883,2]
[424927963,1781283041000,-151.0,0.00013075,2]
[424927961,1781283041000,-301.56,0.00012969,2]
[424927958,1781283041000,-14446.40267086,0.0001285,2]
[424927972,1781283041000,-150.0,0.00013425,2]
[424927962,1781283041000,-308.78,0.00013072,2]
[424927964,1781283041000,-340.474325,0.00013421,7]
[424927973,1781283041000,-500.0,0.00013425,2]
[424927981,1781283041000,-500.0,0.00013425,2]
[424927970,1781283041000,-500.0,0.00013425,2]
[424927974,1781283041000,-500.0,0.00013425,2]
[424927975,1781283041000,-150.0,0.00013425,2]
[424927976,1781283041000,-500.0,0.00013425,2]
[424927977,1781283041000,-500.0,0.00013425,2]
[424927978,1781283041000,-202.73134874,0.00013425,2]
[424927979,1781283041000,-500.0,0.00013425,2]
[424927983,1781283041000,-500.0,0.00013425,2]
[424927986,1781283041000,-399.43782854,0.00013425,2]
[424927985,1781283041000,-500.0,0.00013425,2]
[424927984,1781283041000,-500.0,0.00013425,2]
[424927959,1781283041000,-500.0,0.00012882,2]
[424927971,1781283041000,-500.0,0.00013425,2]
[424927957,1781283041000,-1252.0,0.00012602,2]
[424927935,1781283041000,-5530.0,0.000114,3]
[424927955,1781283041000,-164.09,0.00012492,2]
[424927982,1781283041000,-500.0,0.00013425,2]
[424927931,1781283041000,-166.66,0.00011288,2]
[424927930,1781283041000,-1372.0,0.0001122,5]
[424927932,1781283041000,-163.86,0.00011301,2]
[424927934,1781283041000,-166.66,0.00011397,2]
[424927933,1781283041000,-164.09,0.00011357,2]
[424927937,1781283041000,-736.0,0.00011458,2]
[424927941,1781283041000,-5530.0,0.000116,5]
[424927936,1781283041000,-1356.29,0.00011412,2]
[424927938,1781283041000,-14446.40267086,0.00011483,2]
[424927940,1781283041000,-1016.21030265,0.00011538,2]
[424927939,1781283041000,-166.66,0.00011507,2]
[424927942,1781283041000,-20804.553,0.00011609,2]
[424927943,1781283041000,-558.31977961,0.00011875,2]
[424927953,1781283041000,-163.86,0.00012329,2]
[424927947,1781283041000,-792.01,0.00011975,2]
[424927944,1781283041000,-565.35,0.00011952,2]
[424927945,1781283041000,-1229.67,0.00011975,2]
[424927948,1781283041000,-150.99,0.00012087,2]
[424927946,1781283041000,-12648.06,0.00011975,2]
[424927952,1781283041000,-201.78,0.00012329,2]
[424927950,1781283041000,-14446.40267086,0.00012166,2]
[424927951,1781283041000,-1016.21030265,0.00012211,2]
[424927949,1781283041000,-9999.99,0.00012087,2]
[424927965,1781283041000,-150.0,0.00013425,2]
[424927954,1781283041000,-1356.29,0.0001245,2]
[424927980,1781283041000,-552.49199407,0.00013425,2]
[424928039,1781283041000,-616.0,0.00013425,2]
[424927999,1781283041000,-466.0,0.00013425,2]
[424928018,1781283041000,-150.0,0.00013425,2]
[424928017,1781283041000,-468.48877466,0.00013425,2]
[424928022,1781283041000,-500.0,0.00013425,2]
[424928019,1781283041000,-150.0,0.00013425,2]
[424928023,1781283041000,-500.0,0.00013425,2]
[424928025,1781283041000,-500.0,0.00013425,2]
[424928030,1781283041000,-200.0,0.00013425,2]
[424928029,1781283041000,-523.29570536,0.00013425,2]
[424928024,1781283041000,-515.7929916,0.00013425,2]
[424928026,1781283041000,-150.0,0.00013425,2]
[424928027,1781283041000,-500.0,0.00013425,2]
[424928028,1781283041000,-150.0,0.00013425,2]
[424928031,1781283041000,-616.0,0.00013425,2]
[424928033,1781283041000,-616.0,0.00013425,2]
[424928035,1781283041000,-616.0,0.00013425,2]
[424928034,1781283041000,-616.0,0.00013425,2]
[424928032,1781283041000,-616.0,0.00013425,2]
[424928038,1781283041000,-616.0,0.00013425,2]
[424928037,1781283041000,-616.0,0.00013425,2]
[424928036,1781283041000,-616.0,0.00013425,2]
[424928044,1781283041000,-616.0,0.00013425,2]
[424928041,1781283041000,-616.0,0.00013425,2]
[424928043,1781283041000,-616.0,0.00013425,2]
[424928040,1781283041000,-616.0,0.00013425,2]
[424928042,1781283041000,-616.0,0.00013425,2]
[424928021,1781283041000,-298.70676482,0.00013425,2]
[424928020,1781283041000,-150.0,0.00013425,2]
[424927987,1781283041000,-500.0,0.00013425,2]
[424928015,1781283041000,-466.0,0.00013425,2]
[424927988,1781283041000,-500.0,0.00013425,2]
[424927989,1781283041000,-466.0,0.00013425,2]
[424927993,1781283041000,-578.19274263,0.00013425,2]
[424927992,1781283041000,-466.0,0.00013425,2]
[424927994,1781283041000,-500.0,0.00013425,2]
[424927990,1781283041000,-500.0,0.00013425,2]
[424927995,1781283041000,-247.72428079,0.00013425,2]
[424927997,1781283041000,-466.0,0.00013425,2]
[424927991,1781283041000,-500.0,0.00013425,2]
[424927996,1781283041000,-466.0,0.00013425,2]
[424927998,1781283041000,-466.0,0.00013425,2]
[424928003,1781283041000,-466.0,0.00013425,2]
[424928000,1781283041000,-466.0,0.00013425,2]
[424928016,1781283041000,-466.0,0.00013425,2]
[424928002,1781283041000,-466.0,0.00013425,2]
[424928001,1781283041000,-466.0,0.00013425,2]
[424928013,1781283041000,-466.0,0.00013425,2]
[424928014,1781283041000,-466.0,0.00013425,2]
[424928012,1781283041000,-466.0,0.00013425,2]
[424928011,1781283041000,-466.0,0.00013425,2]
[424928006,1781283041000,-466.0,0.00013425,2]
[424928007,1781283041000,-466.0,0.00013425,2]
[424928004,1781283041000,-466.0,0.00013425,2]
[424928009,1781283041000,-466.0,0.00013425,2]
[424928005,1781283041000,-466.0,0.00013425,2]
[424928010,1781283041000,-466.0,0.00013425,2]
[424928008,1781283041000,-466.0,0.00013425,2]
[424928065,1781283042000,-14446.40267086,0.00013533,2]
[424928067,1781283042000,-180.164522,0.00013558,2]
[424928063,1781283042000,-150.0,0.00013488,2]
[424928064,1781283042000,-200.808855,0.00013491,2]
[424928062,1781283042000,-151.0,0.0001343,2]
[424928074,1781283042000,-500.0,0.00013698,2]
[424928071,1781283042000,-355.30417,0.00013633,7]
[424928070,1781283042000,-164.09,0.00013628,2]
[424928072,1781283042000,-1500.0,0.00013678,2]
[424928076,1781283042000,-500.0,0.00013698,2]
[424928056,1781283042000,-451.0,0.0001343,2]
[424928069,1781283042000,-500.0,0.00013566,2]
[424928066,1781283042000,-1016.21030265,0.00013555,2]
[424928050,1781283042000,-616.0,0.00013425,2]
[424928058,1781283042000,-452.0,0.0001343,2]
[424928055,1781283042000,-150.0,0.0001343,2]
[424928052,1781283042000,-616.0,0.00013425,2]
[424928051,1781283042000,-616.0,0.00013425,2]
[424928048,1781283042000,-616.0,0.00013425,2]
[424928053,1781283042000,-616.0,0.00013425,2]
[424928049,1781283042000,-616.0,0.00013425,2]
[424928054,1781283042000,-634.89332898,0.00013425,2]
[424928047,1781283042000,-616.0,0.00013425,2]
[424928046,1781283042000,-616.0,0.00013425,2]
[424928045,1781283042000,-616.0,0.00013425,2]
[424928073,1781283042000,-525.6,0.00013698,2]
[424928060,1781283042000,-445.0,0.0001343,2]
[424928078,1781283042000,-500.0,0.00013698,2]
[424928068,1781283042000,-500.0,0.00013566,2]
[424928079,1781283042000,-500.0,0.00013698,2]
[424928102,1781283042000,-500.0,0.00013698,2]
[424928077,1781283042000,-500.0,0.00013698,2]
[424928105,1781283042000,-500.0,0.00013698,2]
[424928104,1781283042000,-500.0,0.00013698,2]
[424928106,1781283042000,-500.0,0.00013698,2]
[424928101,1781283042000,-500.0,0.00013698,2]
[424928092,1781283042000,-702.98,0.00013698,2]
[424928096,1781283042000,-702.98,0.00013698,2]
[424928093,1781283042000,-702.98,0.00013698,2]
[424928098,1781283042000,-702.98,0.00013698,2]
[424928094,1781283042000,-702.98,0.00013698,2]
[424928095,1781283042000,-702.98,0.00013698,2]
[424928097,1781283042000,-702.98,0.00013698,2]
[424928090,1781283042000,-702.98,0.00013698,2]
[424928103,1781283042000,-500.0,0.00013698,2]
[424928100,1781283042000,-500.0,0.00013698,2]
[424928099,1781283042000,-702.98,0.00013698,2]
[424928080,1781283042000,-500.0,0.00013698,2]
[424928084,1781283042000,-702.98,0.00013698,2]
[424928083,1781283042000,-702.98,0.00013698,2]
[424928086,1781283042000,-702.98,0.00013698,2]
[424928085,1781283042000,-702.98,0.00013698,2]
[424928088,1781283042000,-702.98,0.00013698,2]
[424928087,1781283042000,-702.98,0.00013698,2]
[424928089,1781283042000,-702.98,0.00013698,2]
[424928091,1781283042000,-702.98,0.00013698,2]
[424928081,1781283042000,-627.07450446,0.00013698,2]
[424928082,1781283042000,-702.98,0.00013698,2]
[424928134,1781283043000,-1056.08,0.00013698,2]
[424928135,1781283043000,-500.0,0.00013698,2]
[424928140,1781283043000,-500.0,0.00013698,2]
[424928136,1781283043000,-500.0,0.00013698,2]
[424928131,1781283043000,-1056.08,0.00013698,2]
[424928132,1781283043000,-1056.08,0.00013698,2]
[424928138,1781283043000,-500.0,0.00013698,2]
[424928133,1781283043000,-1056.08,0.00013698,2]
[424928139,1781283043000,-500.0,0.00013698,2]
[424928148,1781283043000,-500.0,0.00013698,2]
[424928143,1781283043000,-500.0,0.00013698,2]
[424928147,1781283043000,-500.0,0.00013698,2]
[424928144,1781283043000,-500.0,0.00013698,2]
[424928141,1781283043000,-500.0,0.00013698,2]
[424928145,1781283043000,-500.0,0.00013698,2]
[424928149,1781283043000,-500.0,0.00013698,2]
[424928151,1781283043000,-500.0,0.00013698,2]
[424928150,1781283043000,-500.0,0.00013698,2]
[424928137,1781283043000,-500.0,0.00013698,2]
[424928157,1781283043000,-151.0,0.00013699,2]
[424928146,1781283043000,-500.0,0.00013698,2]
[424928130,1781283043000,-1056.08,0.00013698,2]
[424928114,1781283043000,-500.0,0.00013698,2]
[424928128,1781283043000,-1056.08,0.00013698,2]
[424928158,1781283043000,-151.0,0.00013699,2]
[424928108,1781283043000,-500.0,0.00013698,2]
[424928107,1781283043000,-500.0,0.00013698,2]
[424928109,1781283043000,-500.0,0.00013698,2]
[424928110,1781283043000,-500.0,0.00013698,2]
[424928113,1781283043000,-501.08,0.00013698,2]
[424928111,1781283043000,-500.0,0.00013698,2]
[424928120,1781283043000,-1056.08,0.00013698,2]
[424928118,1781283043000,-1056.08,0.00013698,2]
[424928117,1781283043000,-1056.08,0.00013698,2]
[424928115,1781283043000,-578.37934228,0.00013698,2]
[424928112,1781283043000,-500.0,0.00013698,2]
[424928116,1781283043000,-500.0,0.00013698,2]
[424928119,1781283043000,-1056.08,0.00013698,2]
[424928123,1781283043000,-1056.08,0.00013698,2]
[424928121,1781283043000,-1056.08,0.00013698,2]
[424928124,1781283043000,-1056.08,0.00013698,2]
[424928125,1781283043000,-1056.08,0.00013698,2]
[424928127,1781283043000,-1056.08,0.00013698,2]
[424928126,1781283043000,-1056.08,0.00013698,2]
[424928122,1781283043000,-1056.08,0.00013698,2]
[424928129,1781283043000,-1056.08,0.00013698,2]
[424928159,1781283043000,-263.19208656,0.00013699,2]
[424928174,1781283043000,-2000.0,0.00014,2]
[424928153,1781283043000,-200.0,0.00013699,2]
[424928187,1781283043000,-1016.21030265,0.00014228,2]
[424928183,1781283043000,-308.78,0.00014045,2]
[424928186,1781283043000,-1555.5,0.00014226,2]
[424928185,1781283043000,-14446.40267086,0.00014217,2]
[424928188,1781283043000,-308.78,0.00014264,2]
[424928189,1781283043000,-301.56,0.00014333,2]
[424928190,1781283043000,-301.56,0.00014334,2]
[424928197,1781283043000,-151.0,0.000144,2]
[424928193,1781283043000,-301.6,0.00014362,2]
[424928181,1781283043000,-2000.0,0.00014,2]
[424928194,1781283043000,-2000.0,0.00014389,7]
[424928195,1781283043000,-702.98,0.00014399,2]
[424928191,1781283043000,-301.56,0.00014334,2]
[424928192,1781283043000,-301.56,0.00014335,2]
[424928198,1781283043000,-151.0,0.000144,2]
[424928199,1781283043000,-308.78,0.00014448,2]
[424928200,1781283043000,-2000.0,0.000145,2]
[424928202,1781283043000,-454.0,0.00014562,2]
[424928201,1781283043000,-359.900362,0.00014561,7]
[424928156,1781283043000,-261.19710773,0.00013699,10]
[424928196,1781283043000,-25497.1396897,0.000144,2]
[424928182,1781283043000,-2000.0,0.00014,2]
[424928184,1781283043000,-4923.92781698,0.00014066,2]
[424928179,1781283043000,-2000.0,0.00014,2]
[424928180,1781283043000,-2000.0,0.00014,2]
[424928155,1781283043000,-1102.56,0.00013699,2]
[424928154,1781283043000,-2500.0,0.00013699,2]
[424928152,1781283043000,-188.13,0.00013698,2]
[424928166,1781283043000,-89356.7535863,0.000138,2]
[424928160,1781283043000,-151.0,0.00013699,2]
[424928161,1781283043000,-151.0,0.00013699,2]
[424928168,1781283043000,-263.475077,0.00013916,2]
[424928165,1781283043000,-500.0,0.00013799,2]
[424928164,1781283043000,-1056.08,0.00013799,2]
[424928163,1781283043000,-308.78,0.0001376,2]
[424928162,1781283043000,-151.0,0.00013699,2]
[424928169,1781283043000,-500.0,0.00013918,2]
[424928170,1781283043000,-250.0,0.00014,2]
[424928171,1781283043000,-151.0,0.00014,2]
[424928173,1781283043000,-151.0,0.00014,2]
[424928176,1781283043000,-2000.0,0.00014,2]
[424928177,1781283043000,-2005.0,0.00014,2]
[424928175,1781283043000,-2000.0,0.00014,2]
[424928172,1781283043000,-151.0,0.00014,2]
[424928167,1781283043000,-703.0,0.00013868,2]
[424928178,1781283043000,-2000.0,0.00014,2]
[424928237,1781283044000,-702.98,0.00014999,2]
[424928236,1781283044000,-702.98,0.00014999,2]
[424928235,1781283044000,-702.98,0.00014999,2]
[424928230,1781283044000,-558.31977961,0.000149,2]
[424928233,1781283044000,-150.0,0.00014986,2]
[424928226,1781283044000,-2000.0,0.0001485,2]
[424928228,1781283044000,-200.0,0.00014879,2]
[424928242,1781283044000,-1056.08,0.00014999,2]
[424928231,1781283044000,-14446.40267086,0.000149,2]
[424928244,1781283044000,-1056.08897472,0.00014999,2]
[424928247,1781283044000,-500.0,0.00014999,2]
[424928239,1781283044000,-703.00360028,0.00014999,2]
[424928240,1781283044000,-1056.08,0.00014999,2]
[424928241,1781283044000,-1056.08,0.00014999,2]
[424928243,1781283044000,-1056.08,0.00014999,2]
[424928245,1781283044000,-2000.0,0.00014999,2]
[424928246,1781283044000,-500.0,0.00014999,2]
[424928256,1781283044000,-500.0,0.00014999,2]
[424928255,1781283044000,-500.0,0.00014999,2]
[424928232,1781283044000,-169.64399403,0.00014925,2]
[424928249,1781283044000,-500.0,0.00014999,2]
[424928253,1781283044000,-500.0,0.00014999,2]
[424928238,1781283044000,-702.98,0.00014999,2]
[424928227,1781283044000,-200.0,0.00014867,2]
[424928222,1781283044000,-170.04075193,0.00014784,2]
[424928229,1781283044000,-1016.21030265,0.000149,2]
[424928250,1781283044000,-500.0,0.00014999,2]
[424928205,1781283044000,-151.0,0.0001463,2]
[424928206,1781283044000,-151.0,0.00014645,2]
[424928203,1781283044000,-444.0,0.00014562,2]
[424928207,1781283044000,-152.0,0.00014675,2]
[424928208,1781283044000,-152.0,0.00014675,2]
[424928214,1781283044000,-152.0,0.00014675,2]
[424928210,1781283044000,-152.0,0.00014675,2]
[424928209,1781283044000,-152.0,0.00014675,2]
[424928211,1781283044000,-152.0,0.00014675,2]
[424928225,1781283044000,-2000.0,0.0001485,2]
[424928213,1781283044000,-152.0,0.00014675,2]
[424928216,1781283044000,-151.0,0.00014675,2]
[424928212,1781283044000,-152.0,0.00014675,2]
[424928223,1781283044000,-200.0,0.0001484,2]
[424928217,1781283044000,-151.0,0.00014675,2]
[424928219,1781283044000,-151.0,0.00014675,2]
[424928218,1781283044000,-151.0,0.00014675,2]
[424928221,1781283044000,-1613.0535,0.00014774,2]
[424928220,1781283044000,-151.0,0.00014675,2]
[424928224,1781283044000,-2000.0,0.0001485,2]
[424928234,1781283044000,-169.64399403,0.00014993,2]
[424928215,1781283044000,-151.0,0.00014675,2]
[424928204,1781283044000,-151.0,0.0001463,2]
[424928248,1781283044000,-500.0,0.00014999,2]
[424928252,1781283044000,-500.0,0.00014999,2]
[424928288,1781283044000,-500.0,0.00014999,2]
[424928279,1781283044000,-500.0,0.00014999,2]
[424928287,1781283044000,-500.0,0.00014999,2]
[424928284,1781283044000,-500.0,0.00014999,2]
[424928286,1781283044000,-500.0,0.00014999,2]
[424928290,1781283044000,-500.0,0.00014999,2]
[424928289,1781283044000,-500.0,0.00014999,2]
[424928299,1781283044000,-500.0,0.00014999,2]
[424928300,1781283044000,-500.0,0.00014999,2]
[424928298,1781283044000,-500.0,0.00014999,2]
[424928283,1781283044000,-500.0,0.00014999,2]
[424928295,1781283044000,-500.0,0.00014999,2]
[424928291,1781283044000,-500.0,0.00014999,2]
[424928294,1781283044000,-500.0,0.00014999,2]
[424928292,1781283044000,-500.0,0.00014999,2]
[424928293,1781283044000,-500.0,0.00014999,2]
[424928296,1781283044000,-500.0,0.00014999,2]
[424928301,1781283044000,-500.0,0.00014999,2]
[424928303,1781283044000,-500.0,0.00014999,2]
[424928302,1781283044000,-500.0,0.00014999,2]
[424928304,1781283044000,-500.0,0.00014999,2]
[424928254,1781283044000,-500.0,0.00014999,2]
[424928297,1781283044000,-500.0,0.00014999,2]
[424928281,1781283044000,-500.0,0.00014999,2]
[424928285,1781283044000,-500.0,0.00014999,2]
[424928278,1781283044000,-500.0,0.00014999,2]
[424928251,1781283044000,-500.0,0.00014999,2]
[424928258,1781283044000,-500.0,0.00014999,2]
[424928259,1781283044000,-500.0,0.00014999,2]
[424928262,1781283044000,-500.0,0.00014999,2]
[424928265,1781283044000,-500.0,0.00014999,2]
[424928282,1781283044000,-500.0,0.00014999,2]
[424928257,1781283044000,-500.0,0.00014999,2]
[424928266,1781283044000,-500.0,0.00014999,2]
[424928260,1781283044000,-500.0,0.00014999,2]
[424928264,1781283044000,-500.0,0.00014999,2]
[424928263,1781283044000,-500.0,0.00014999,2]
[424928268,1781283044000,-500.0,0.00014999,2]
[424928261,1781283044000,-500.0,0.00014999,2]
[424928277,1781283044000,-500.0,0.00014999,2]
[424928276,1781283044000,-500.0,0.00014999,2]
[424928280,1781283044000,-500.0,0.00014999,2]
[424928273,1781283044000,-500.0,0.00014999,2]
[424928272,1781283044000,-500.0,0.00014999,2]
[424928274,1781283044000,-500.0,0.00014999,2]
[424928275,1781283044000,-500.0,0.00014999,2]
[424928271,1781283044000,-500.0,0.00014999,2]
[424928270,1781283044000,-500.0,0.00014999,2]
[424928269,1781283044000,-500.0,0.00014999,2]
[424928267,1781283044000,-500.0,0.00014999,2]
[424928310,1781283045000,-500.0,0.00014999,2]
[424928315,1781283045000,-500.0,0.00014999,2]
[424928313,1781283045000,-500.0,0.00014999,2]
[424928314,1781283045000,-500.0,0.00014999,2]
[424928318,1781283045000,-500.0,0.00014999,2]
[424928312,1781283045000,-500.0,0.00014999,2]
[424928307,1781283045000,-500.0,0.00014999,2]
[424928309,1781283045000,-500.0,0.00014999,2]
[424928305,1781283045000,-500.0,0.00014999,2]
[424928306,1781283045000,-500.0,0.00014999,2]
[424928308,1781283045000,-500.0,0.00014999,2]
[424928321,1781283045000,-500.0,0.00014999,2]
[424928311,1781283045000,-500.0,0.00014999,2]
[424928316,1781283045000,-500.0,0.00014999,2]
[424928319,1781283045000,-500.0,0.00014999,2]
[424928320,1781283045000,-500.0,0.00014999,2]
[424928333,1781283045000,-665.0,0.00015,2]
[424928328,1781283045000,-300.0,0.00014999,2]
[424928329,1781283045000,-300.0,0.00014999,2]
[424928332,1781283045000,-6022.1049442,0.00015,2]
[424928331,1781283045000,-3696888.50283458,0.00015,2]
[424928327,1781283045000,-300.0,0.00014999,2]
[424928317,1781283045000,-500.0,0.00014999,2]
[424928326,1781283045000,-500.0,0.00014999,2]
[424928324,1781283045000,-500.0,0.00014999,2]
[424928325,1781283045000,-500.0,0.00014999,2]
[424928323,1781283045000,-500.0,0.00014999,2]
[424928322,1781283045000,-500.0,0.00014999,2]
[424928334,1781283045000,-1164.78231387,0.00015,2]
[424928330,1781283045000,-300.0,0.00014999,2]
[424928337,1781283047000,-765.6,0.00015,2]
[424928339,1781283047000,-339.37920016,0.00015,2]
[424928338,1781283047000,-25.32648312,0.00015,2]
[424928341,1781283047000,-615.55551412,0.00015,2]
[424928340,1781283047000,-545.59881329,0.00015,2]
[424928343,1781283047000,-64256.51180284,0.00015,2]
[424928342,1781283047000,-2684.79048908,0.00015,2]
[424928345,1781283069000,351.544816,8.509e-05,2]
[424928344,1781283069000,34038.45917824,8.509e-05,2]
[424928346,1781283070000,6375.50824376,8.509e-05,2]
[424928347,1781283070000,159.02604451,8.509e-05,2]
[424928348,1781283165000,-97042.0,8.509e-05,2]
[424928350,1781283258000,-500.0,8.339e-05,2]
[424928351,1781283279000,-500.0,8.339e-05,2]
[424928352,1781283300000,-358.51517898,8e-05,2]
[424928353,1781283352000,-267.806,8.339e-05,2]
[424928354,1781283406000,-168.376,8.339e-05,2]
[424928356,1781283458000,-250.0,8.38e-05,2]
[424928357,1781283512000,-150.0,8.506e-05,2]
[424928358,1781283567000,-229.88140005,8.506e-05,2]
[424928359,1781283619000,-300.0,8.505e-05,2]
[424928361,1781283672000,-150.0,8.505e-05,2]
[424928383,1781283848000,-315.42116036,8.504e-05,2]
[424928362,1781283848000,-300.0,8.503e-05,2]
[424928365,1781283848000,-500.0,8.504e-05,2]
[424928364,1781283848000,-500.44346536,8.504e-05,2]
[424928363,1781283848000,-150.0,8.503e-05,2]
[424928367,1781283848000,-500.0,8.504e-05,2]
[424928369,1781283848000,-500.0,8.504e-05,2]
[424928368,1781283848000,-616.27963198,8.504e-05,2]